bitfinex-derivatives/quotes_SOLF0:USTF0_20260202
["timestamp","ask_amount","ask_price","bid_price","bid_amount"]
[1769992311462,3.66357522,102.14,102.05,149.90633669]
[1769992311769,149.68067522,102.14,102.05,3.76273669]
[1769992311968,12.48367522,102.14,102.05,3.76273669]
[1769992312457,149.68157522,102.14,102.05,3.76273669]
[1769992313665,12.48367522,102.14,102.05,3.76273669]
[1769992313869,285.96,102.15,102.06,3.76273669]
[1769992314059,426.80787522,102.15,102.06,3.76273669]
[1769992314259,140.84787522,102.15,102.06,3.76273669]
[1769992314458,140.84787522,102.15,102.06,13.74138296]
[1769992314459,3.66357522,102.15,102.06,13.74138296]
[1769992314659,3.66357522,102.13,102.03,141.10513669]
[1769992315067,3.66357522,102.13,102.04,149.92183669]
[1769992315267,3.66357522,102.13,102.05,141.07853669]
[1769992316365,3.66357522,102.15,102.06,12.58913669]
[1769992316573,3.66357522,102.14,102.04,151.07188296]
[1769992316871,3.66357522,102.14,102.06,149.89283669]
[1769992317066,3.66357522,102.14,102.04,151.06508296]
[1769992317267,140.95827522,102.07,101.98,3.76273669]
[1769992317465,140.96867522,102.06,101.95,141.21373669]
[1769992317769,3.66357522,102.05,101.96,141.19973669]
[1769992319267,3.66357522,102.05,101.97,8.8342]
[1769992319464,3.66357522,102.05,101.97,12.59693669]
[1769992320573,3.66357522,102.01,101.92,3.76273669]
[1769992320774,288.86357522,102.01,101.92,3.76273669]
[1769992320974,3.66357522,102.04,101.95,137.4525]
[1769992321169,3.66357522,102.1,102.0,141.14463669]
[1769992321369,9.97864627,102.13,101.99,9.97864627]
[1769992321370,3.66357522,102.13,102.05,137.3175]
[1769992321577,3.66357522,102.13,102.05,13.74138296]
[1769992321774,3.66357522,102.16,102.09,137.263]
[1769992321978,3.66357522,102.16,102.1,8.823]
[1769992322172,3.66357522,102.16,102.07,141.04363669]
[1769992322578,3.66357522,102.16,102.09,137.2629]
[1769992322777,3.66357522,102.16,102.07,151.02168296]
[1769992323079,3.66357522,102.16,102.07,141.04303669]
[1769992323571,3.66357522,102.16,102.08,137.2771]
[1769992323771,284.82,102.17,102.09,137.2638]
[1769992323971,3.66357522,102.19,102.11,146.0581]
[1769992324173,284.74,102.21,102.14,137.1967]
[1769992324379,3.66357522,102.25,102.18,137.1432]
[1769992324573,288.52357522,102.28,102.19,8.8152]
[1769992324780,288.52357522,102.28,102.19,145.9406]
[1769992324974,288.52357522,102.28,102.19,137.1294]
[1769992325180,3.66357522,102.28,102.2,145.927]
[1769992325383,3.66357522,102.31,102.24,137.0612]
[1769992325676,3.66357522,102.31,102.22,140.85193669]
[1769992325979,3.66357522,102.3,102.21,137.1008]
[1769992326374,284.84,102.31,102.23,137.0751]
[1769992326582,3.66357522,102.33,102.25,137.0479]
[1769992326775,3.66357522,102.29,102.19,137.1169]
[1769992327074,136.9035,102.36,102.19,137.1169]
[1769992327075,169.99627522,102.36,102.25,137.0382]
[1769992327282,3.66357522,102.39,102.3,136.9785]
[1769992327481,3.66357522,102.39,102.31,136.9666]
[1769992327887,3.66357522,102.39,102.29,145.7908]
[1769992328087,3.67394082,102.38,102.29,136.995]
[1769992328286,3.67394082,102.38,102.28,3.76273669]
[1769992328586,3.67394082,102.38,102.28,140.76443669]
[1769992328782,286.47394082,102.37,102.28,140.77073669]
[1769992328987,284.5,102.37,102.28,137.008]
[1769992329480,284.52,102.41,102.32,136.9517]
[1769992329677,136.8148,102.43,102.32,136.9517]
[1769992329980,421.3826,102.42,102.31,145.7738]
[1769992330589,421.3826,102.42,102.32,136.954]
[1769992330783,421.3826,102.42,102.31,8.805]
[1769992330784,3.67394082,102.44,102.35,140.72369407]
[1769992331086,136.7858,102.45,102.37,136.8844]
[1769992331087,136.38,102.45,102.37,136.8844]
[1769992331283,136.38,102.45,102.33,39.15688267]
[1769992331284,3.67394082,102.47,102.38,140.68799407]
[1769992331483,3.67394082,102.49,102.4,136.8468]
[1769992331679,3.67394082,102.49,102.39,140.67449407]
[1769992331883,3.67394082,102.49,102.39,3.81399407]
[1769992331884,136.7556,102.47,102.39,3.81399407]
[1769992332084,136.6659,102.54,102.36,39.15688267]
[1769992332085,136.7434,102.48,102.4,3.81399407]
[1769992332487,3.67394082,102.45,102.36,3.81399407]
[1769992332692,3.67394082,102.45,102.36,136.9015]
[1769992333198,181.03394082,102.44,102.35,136.9147]
[1769992333492,140.48354082,102.43,102.33,136.9415]
[1769992333684,3.67394082,102.43,102.35,136.9141]
[1769992333881,3.67394082,102.43,102.32,3.81399407]
[1769992334190,3.67394082,102.42,102.32,149.57239407]
[1769992334386,3.67394082,102.42,102.34,136.928]
[1769992334691,284.96,102.44,102.34,140.74199407]
[1769992334891,140.48374082,102.43,102.34,3.81399407]
[1769992335190,288.59394082,102.46,102.36,136.9014]
[1769992335381,425.36464082,102.46,102.36,136.9014]
[1769992335794,140.47004082,102.44,102.35,3.81399407]
[1769992335994,425.39054082,102.44,102.35,3.81399407]
[1769992336290,425.39054082,102.44,102.31,39.15688267]
[1769992336291,140.52464082,102.4,102.31,3.81399407]
[1769992336489,136.876,102.38,102.28,140.82199407]
[1769992336696,282.31654082,102.39,102.28,140.82199407]
[1769992336888,140.55334082,102.38,102.28,140.82199407]
[1769992337085,140.55204082,102.38,102.28,140.82199407]
[1769992337389,3.67394082,102.37,102.28,3.81399407]
[1769992337589,136.9079,102.36,102.28,3.81399407]
[1769992337792,3.67394082,102.36,102.27,137.0202]
[1769992337985,140.58014082,102.36,102.25,140.85359407]
[1769992338187,3.67394082,102.34,102.25,140.85359407]
[1769992338489,3.67394082,102.34,102.17,154.7782]
[1769992338490,140.63274082,102.32,102.22,3.81399407]
[1769992338692,136.9699,102.31,102.22,3.81399407]
[1769992338987,3.67394082,102.32,102.22,140.90239407]
[1769992339191,3.67394082,102.32,102.19,140.94289407]
[1769992339192,140.67144082,102.29,102.19,140.94289407]
[1769992339393,361.13144082,102.29,102.19,140.94289407]
[1769992339591,137.0118,102.28,102.19,3.81399407]
[1769992339784,224.13394082,102.29,102.2,137.1155]
[1769992340284,3.67394082,102.32,102.24,137.0623]
[1769992340483,3.67394082,102.36,102.26,137.0341]
[1769992340684,324.58994082,102.35,102.24,140.87009407]
[1769992340893,140.60454082,102.34,102.24,140.87009407]
[1769992341091,3.67394082,102.3,102.2,137.116]
[1769992341298,3.67394082,102.29,102.19,137.128]
[1769992341598,3.67394082,102.29,102.2,140.92679407]
[1769992341790,140.67394082,102.29,102.2,3.81399407]
[1769992341993,140.67394082,102.29,102.13,293.4031]
[1769992341994,201.85394082,102.28,102.18,137.1416]
[1769992342391,201.85394082,102.28,102.18,145.9575]
[1769992342697,201.85394082,102.28,102.19,137.1289]
[1769992342892,201.85394082,102.28,102.19,149.75819407]
[1769992343097,198.18,102.28,102.21,140.91629407]
[1769992343596,140.60404082,102.34,102.24,3.81399407]
[1769992343894,136.9569,102.32,102.22,8.8126]
[1769992344197,149.43644082,102.32,102.22,140.90219407]
[1769992344397,3.67394082,102.32,102.22,140.90219407]
[1769992344597,3.67394082,102.32,102.22,149.71489407]
[1769992344794,140.63324082,102.32,102.22,12.62669407]
[1769992344997,3.67394082,102.32,102.22,149.71519407]
[1769992345196,425.63824082,102.35,102.25,140.85919407]
[1769992345591,425.63824082,102.35,102.25,3.81399407]
[1769992346097,425.63824082,102.35,102.19,322.7675]
[1769992346098,140.64634082,102.31,102.21,140.90569407]
[1769992346393,3.67394082,102.31,102.22,137.088]
[1769992346598,3.67394082,102.31,102.21,149.72999407]
[1769992346794,140.65674082,102.3,102.2,137.1148]
[1769992347394,324.19688267,102.35,102.18,3.81399407]
[1769992347395,140.69794082,102.27,102.18,3.81399407]
[1769992347799,140.68194082,102.29,102.19,3.81399407]
[1769992348102,3.67394082,102.29,102.2,137.1116]
[1769992348401,333.2132,102.31,102.21,140.91449407]
[1769992348699,345.69244082,102.31,102.21,3.81399407]
[1769992348896,136.9974,102.29,102.21,3.81399407]
[1769992349201,149.52154082,102.26,102.17,3.81399407]
[1769992349396,3.67394082,102.26,102.17,140.96989407]
[1769992349598,3.67394082,102.26,102.17,149.78529407]
[1769992349803,137.0031,102.29,102.19,140.94339407]
[1769992350102,137.011,102.28,102.19,12.62909407]
[1769992350299,3.67394082,102.29,102.2,137.1142]
[1769992350499,140.67154082,102.29,102.19,3.81399407]
[1769992350693,149.47874082,102.29,102.2,8.8142]
[1769992350893,137.0117,102.28,102.19,3.81399407]
[1769992351094,137.0378,102.26,102.16,140.98309407]
[1769992351304,140.71174082,102.26,102.16,140.98309407]
[1769992351704,12.48374082,102.26,102.17,137.155]
[1769992352104,12.48374082,102.26,102.16,3.81399407]
[1769992352105,149.51984082,102.26,102.16,3.81399407]
[1769992352295,140.76574082,102.22,102.13,3.81399407]
[1769992352494,3.67394082,102.22,102.13,141.02409407]
[1769992352704,149.58104082,102.22,102.13,12.63429407]
[1769992353202,12.48734082,102.22,102.13,12.63429407]
[1769992353399,145.9177,102.21,102.13,3.81399407]
[1769992353704,145.9177,102.21,102.11,8.8219]
[1769992353903,137.1171,102.2,102.11,8.8219]
[1769992354101,3.67394082,102.21,102.12,149.85399407]
[1769992354605,3.67394082,102.21,102.12,12.63509407]
[1769992354801,3.67394082,102.2,102.11,137.2359]
[1769992354998,3.67394082,102.2,102.12,137.2233]
[1769992355500,3.67394082,102.2,102.12,146.0449]
[1769992355797,3.67394082,102.24,102.15,140.99679407]
[1769992356404,137.0498,102.25,102.12,137.212]
[1769992356405,3.67394082,102.21,102.12,137.212]
[1769992356598,140.79134082,102.2,102.11,3.81399407]
[1769992356799,140.79174082,102.2,102.11,3.81399407]
[1769992356997,12.48974082,102.19,102.09,146.085]
[1769992357196,3.67394082,102.19,102.11,137.2367]
[1769992357398,200.46,102.21,102.12,141.03679407]
[1769992357806,209.2742,102.21,102.12,149.85759407]
[1769992358006,140.78881599,102.19,102.09,141.02108946]
[1769992358199,3.65811599,102.16,102.06,513.50263431]
[1769992358397,3.65811599,102.15,102.07,8.8255]
[1769992358698,140.85691599,102.14,102.04,137.3298]
[1769992358895,149.69041599,102.13,102.03,12.58648946]
[1769992359096,39.15688267,102.16,102.03,12.58648946]
[1769992359097,3.65811599,102.11,102.03,3.75768946]
[1769992359307,3.65811599,102.1,102.01,137.3704]
[1769992359702,149.73371599,102.1,102.0,12.58898946]
[1769992359904,137.3062,102.06,101.97,3.75768946]
[1769992360107,3.65811599,102.07,101.97,3.75768946]
[1769992360108,233.51811599,102.07,101.98,137.4097]
[1769992360303,137.3048,102.06,101.97,3.75768946]
[1769992360604,233.51811599,102.07,101.98,137.4119]
[1769992361198,233.51811599,102.07,102.0,137.3809]
[1769992361402,233.51811599,102.07,101.99,137.3907]
[1769992361907,233.51811599,102.07,102.0,146.2157]
[1769992362108,233.51811599,102.07,101.98,137.3993]
[1769992362509,233.51811599,102.07,101.98,146.2325]
[1769992362711,3.65811599,102.06,101.97,3.75768946]
[1769992362907,140.96481599,102.06,101.97,3.75768946]
[1769992363301,140.97761599,102.05,101.96,8.8349]
[1769992363501,3.65811599,102.04,101.96,8.8349]
[1769992364104,8.8279,102.05,101.96,150.03128946]
[1769992364300,3.65811599,102.07,101.97,150.01588946]
[1769992364501,140.98101599,102.05,101.95,137.4401]
[1769992364706,140.99321599,102.04,101.95,8.8356]
[1769992364908,323.39688267,102.07,101.91,200.93688267]
[1769992364909,425.19261599,102.07,101.97,141.18168946]
[1769992365213,140.96591599,102.06,101.97,3.75768946]
[1769992365405,184.59811599,102.06,101.97,141.18138946]
[1769992366112,3.81586263,102.05,101.97,3.75768946]
[1769992366510,3.81586263,102.04,101.94,141.04458797]
[1769992366711,141.15286263,102.04,101.94,3.58728797]
[1769992366909,141.16386263,102.03,101.94,3.58728797]
[1769992367110,146.1896,102.02,101.94,3.58728797]
[1769992367407,3.81586263,102.01,101.92,137.4927]
[1769992367603,3.81586263,102.01,101.92,12.42568797]
[1769992367807,141.18806263,102.01,101.92,3.58728797]
[1769992368317,141.21616263,101.99,101.89,3.58728797]
[1769992368812,153.57586263,101.99,101.9,137.5199]
[1769992369014,153.57586263,101.99,101.9,141.10718797]
[1769992369313,153.57586263,101.99,101.9,3.58728797]
[1769992369509,162.40896263,101.99,101.9,12.42748797]
[1769992369917,149.76,101.99,101.92,149.91718797]
[1769992370215,3.81586263,102.02,101.93,141.06618797]
[1769992370413,3.81586263,102.02,101.94,146.3024]
[1769992370804,3.81586263,102.02,101.94,8.8366]
[1769992371118,272.5,102.03,101.95,146.2879]
[1769992371319,272.5,102.03,101.95,149.87518797]
[1769992371521,285.14546263,102.03,101.95,3.58728797]
[1769992371712,422.49196263,102.03,101.94,8.8368]
[1769992371908,141.17686263,102.02,101.92,3.58728797]
[1769992372109,12.64796263,102.0,101.92,3.58728797]
[1769992372311,413.67306263,102.03,101.92,149.91868797]
[1769992372513,276.31586263,102.03,101.95,3.58728797]
[1769992373422,276.31586263,102.03,101.95,12.42318797]
[1769992374120,285.14556263,102.03,101.95,3.58728797]
[1769992374316,141.17416263,102.02,101.92,3.58728797]
[1769992374524,8.8313,102.01,101.92,141.07808797]
[1769992375126,12.64716263,102.01,101.92,3.58728797]
[1769992375330,12.64716263,102.01,101.89,27.96886837]
[1769992375331,3.81586263,101.98,101.89,3.58728797]
[1769992375522,141.23686263,101.98,101.89,3.58728797]
[1769992375827,3.81586263,101.98,101.89,141.12078797]
[1769992376028,3.81586263,101.93,101.83,141.19958797]
[1769992376326,184.85586263,101.96,101.86,141.16048797]
[1769992376926,184.85586263,101.96,101.87,141.14688797]
[1769992377126,184.85586263,101.96,101.87,3.58728797]
[1769992377327,3.81586263,101.96,101.88,141.13358797]
[1769992377824,285.28,101.98,101.91,3.58728797]
[1769992378029,3.81586263,101.99,101.91,3.58728797]
[1769992378329,3.81586263,101.99,101.91,141.09348797]
[1769992378731,3.81586263,101.99,101.91,3.58728797]
[1769992378925,137.3738,102.01,101.91,141.09378797]
[1769992379130,8.8317,102.01,101.92,8.8382]
[1769992379330,426.53676263,102.02,101.91,3.58728797]
[1769992379331,141.20546263,102.0,101.91,3.58728797]
[1769992379831,3.81586263,101.98,101.9,12.42728797]
[1769992380034,141.20116263,102.0,101.9,12.42728797]
[1769992380328,3.81586263,101.99,101.9,12.42728797]
[1769992380527,3.81586263,102.0,101.91,3.58728797]
[1769992380922,141.23406263,101.98,101.87,141.13568797]
[1769992381230,3.81586263,101.93,101.84,141.18638797]
[1769992381429,3.81586263,101.93,101.84,12.43288797]
[1769992381430,8.839,101.92,101.84,12.43288797]
[1769992381732,141.30986263,101.92,101.82,137.6275]
[1769992382230,170.75106263,101.91,101.82,8.8468]
[1769992382535,8.836,101.96,101.87,141.14628797]
[1769992383036,288.75586263,101.98,101.89,137.5334]
[1769992383231,141.22836263,101.98,101.87,141.13868797]
[1769992383431,288.85586263,101.98,101.89,137.5332]
[1769992383736,297.68976263,101.98,101.9,12.42738797]
[1769992383927,288.85586263,101.98,101.9,141.10418797]
[1769992384329,288.85586263,101.98,101.91,8.8393]
[1769992384528,288.85586263,101.98,101.9,3.58728797]
[1769992384723,288.85586263,101.98,101.89,137.5325]
[1769992384724,180.29586263,102.01,101.92,141.07778797]
[1769992384936,285.7,102.02,101.93,3.58728797]
[1769992385234,8.8312,102.01,101.93,12.42488797]
[1769992385635,8.8321,102.0,101.93,3.58728797]
[1769992385829,8.8321,102.0,101.91,8.839]
[1769992386133,8.8321,102.0,101.92,8.8386]
[1769992386429,285.68,102.01,101.93,3.58728797]
[1769992386632,3.81586263,102.02,101.94,137.4648]
[1769992386831,3.81586263,102.02,101.93,3.58728797]
[1769992386832,3.81586263,102.02,101.95,8.836]
[1769992387428,8.8294,102.03,101.95,12.48907539]
[1769992387736,141.03949477,102.02,101.92,3.65307539]
[1769992387932,426.55949477,102.02,101.92,141.14607539]
[1769992388129,289.19269477,102.02,101.94,8.8368]
[1769992388333,3.67269477,102.02,101.92,3.65307539]
[1769992388536,141.03189477,102.02,101.92,3.65307539]
[1769992388832,8.8321,102.0,101.92,3.65307539]
[1769992389432,3.67269477,102.01,101.92,149.98457539]
[1769992389632,3.67269477,102.01,101.92,141.14607539]
[1769992390232,452.238,102.03,101.88,36.07514939]
[1769992390233,285.46,102.03,101.95,3.65307539]
[1769992390536,141.00449477,102.04,101.95,3.65307539]
[1769992391132,8.8306,102.02,101.95,3.65307539]
[1769992391328,8.8306,102.02,101.92,141.14127539]
[1769992391528,8.8306,102.02,101.93,3.65307539]
[1769992391733,8.8314,102.01,101.93,3.65307539]
[1769992391935,141.06029477,102.0,101.9,141.16047539]
[1769992392333,3.67269477,102.0,101.91,141.15877539]
[1769992392934,297.68259477,102.03,101.94,141.11877539]
[1769992393133,288.85269477,102.03,101.95,3.65307539]
[1769992393334,3.67269477,102.03,101.95,3.65307539]
[1769992393534,12.50219477,102.03,101.95,12.48907539]
[1769992393935,3.67269477,102.06,101.98,8.8334]
[1769992394436,12.49949477,102.06,101.98,8.8334]
[1769992394636,157.68,102.07,101.94,26.26214939]
[1769992394637,157.68,102.07,101.99,141.04987539]
[1769992394833,157.68,102.07,101.99,3.65307539]
[1769992395137,157.68,102.07,101.99,141.05017539]
[1769992395326,140.97749477,102.06,101.96,3.65307539]
[1769992395731,141.00459477,102.04,101.96,3.65307539]
[1769992395938,3.67269477,102.02,101.93,12.49027539]
[1769992396136,284.94,102.04,101.94,3.65307539]
[1769992396137,141.00829477,102.04,101.94,3.65307539]
[1769992396439,3.67269477,102.07,101.98,3.65307539]
[1769992396736,171.77269477,102.1,102.0,151.03348516]
[1769992396932,8.8243,102.09,102.0,13.65068516]
[1769992397235,140.93759477,102.09,102.0,3.65307539]
[1769992397426,168.1,102.1,101.98,12.48597539]
[1769992397427,8.8269,102.06,101.98,12.48597539]
[1769992397633,140.97929477,102.06,101.98,3.65307539]
[1769992397837,3.67269477,102.06,101.98,3.65307539]
[1769992398030,3.67269477,102.06,101.98,141.06377539]
[1769992398235,3.67269477,102.09,102.0,141.03707539]
[1769992398433,3.67269477,102.09,102.0,3.65307539]
[1769992398833,3.67269477,102.09,102.0,141.03737539]
[1769992399139,3.67269477,102.09,102.01,3.65307539]
[1769992399338,12.49689477,102.09,102.01,12.48387539]
[1769992400039,293.6034,102.1,102.02,8.8299]
[1769992400228,3.67269477,102.09,101.99,147.38320977]
[1769992400434,422.0312,102.1,101.95,151.09108516]
[1769992400435,3.67269477,102.06,101.95,151.09108516]
[1769992400733,8.8277,102.05,101.97,8.8343]
[1769992400934,3.67269477,102.04,101.95,3.65307539]
[1769992401130,3.67269477,102.04,101.96,8.8352]
[1769992401438,297.26599477,102.07,101.97,141.07767539]
[1769992401628,140.97939477,102.06,101.97,3.65307539]
[1769992402133,3.67269477,102.03,101.93,141.12687539]
[1769992402637,3.67269477,102.03,101.94,3.65307539]
[1769992402840,12.50219477,102.03,101.94,141.11157539]
[1769992403533,3.67269477,102.01,101.91,141.15637539]
[1769992403740,3.67269477,102.01,101.92,3.65307539]
[1769992404132,3.67269477,101.99,101.9,17.34570659]
[1769992404436,141.08839477,101.98,101.89,3.65307539]
[1769992404635,8.8363,101.95,101.87,8.843]
[1769992405438,8.8373,101.94,101.86,3.65307539]
[1769992405743,3.67269477,101.95,101.86,3.65307539]
[1769992406338,141.13039477,101.95,101.86,3.65307539]
[1769992406542,3.67269477,101.96,101.87,3.65307539]
[1769992406843,141.11199477,101.96,101.87,3.65307539]
[1769992407040,149.96329477,101.95,101.85,146.4193]
[1769992407241,12.50919477,101.95,101.86,141.22647539]
[1769992407436,8.8375,101.94,101.84,146.4403]
[1769992407644,3.67269477,101.93,101.84,146.4403]
[1769992407947,3.67269477,101.93,101.85,3.65307539]
[1769992408444,3.67269477,101.93,101.85,12.49747539]
[1769992408846,3.67269477,101.93,101.85,150.08167539]
[1769992409247,215.72970267,101.97,101.87,141.21357539]
[1769992409248,12.50859477,101.96,101.87,141.21357539]
[1769992409443,189.42,101.97,101.89,3.65307539]
[1769992409643,189.42,101.97,101.89,141.18607539]
[1769992409844,189.42,101.97,101.89,12.49417539]
[1769992410150,189.42,101.97,101.9,3.65307539]
[1769992410639,141.07219477,101.99,101.9,3.65307539]
[1769992410837,424.39219477,101.99,101.9,3.65307539]
[1769992411244,141.07219477,101.99,101.9,3.65307539]
[1769992411449,8.8339,101.98,101.9,3.65307539]
[1769992411647,3.67269477,101.97,101.88,8.8417]
[1769992411845,3.67269477,101.97,101.85,12.49747539]
[1769992411846,12.51019477,101.94,101.85,12.49747539]
[1769992412151,3.67269477,101.94,101.85,141.23957539]
[1769992412351,3.67269477,101.94,101.86,12.49687539]
[1769992412748,3.67269477,101.94,101.82,1.70797546]
[1769992412749,3.67269477,101.93,101.83,158.60048198]
[1769992413050,3.67269477,101.93,101.84,141.25287539]
[1769992413252,3.67269477,101.93,101.84,3.65307539]
[1769992414252,3.67269477,101.9,101.81,407.89947258]
[1769992414451,141.20959477,101.89,101.79,137.6683]
[1769992414653,141.22159477,101.88,101.78,3.65307539]
[1769992414849,150.07899477,101.87,101.78,3.65307539]
[1769992415350,337.45899477,101.87,101.78,3.65307539]
[1769992415551,8.845,101.85,101.78,3.65307539]
[1769992415951,328.62239477,101.87,101.78,3.65307539]
[1769992416152,12.51729477,101.86,101.78,3.65307539]
[1769992416448,3.67269477,101.84,101.75,137.7217]
[1769992416655,12.51899477,101.84,101.76,8.8525]
[1769992416851,3.67269477,101.83,101.74,20.99878198]
[1769992417056,3.67269477,101.83,101.74,158.73288198]
[1769992417251,3.67269477,101.85,101.75,141.37577539]
[1769992417452,3.67269477,101.82,101.72,158.75268198]
[1769992417649,8.8464,101.84,101.75,141.4540471]
[1769992417851,8.8464,101.84,101.76,3.7324471]
[1769992418854,8.8464,101.84,101.76,12.5848471]
[1769992419455,141.04194265,101.85,101.76,12.5848471]
[1769992419753,3.45404265,101.83,101.74,12.5863471]
[1769992419958,3.45404265,101.82,101.74,12.5863471]
[1769992420955,8.8464,101.84,101.75,12.5856471]
[1769992421156,3.45404265,101.88,101.78,141.4127471]
[1769992421352,3.45404265,101.88,101.8,3.7324471]
[1769992421556,141.01494265,101.87,101.76,141.4284471]
[1769992421757,141.01494265,101.87,101.77,3.7324471]
[1769992422261,12.29844265,101.86,101.77,3.7324471]
[1769992422959,282.7,101.87,101.79,3.7324471]
[1769992423157,141.01484265,101.87,101.79,3.7324471]
[1769992424160,3.45404265,101.87,101.79,3.7324471]
[1769992424563,167.58,101.89,101.81,3.7324471]
[1769992424865,141.01604265,101.87,101.78,3.7324471]
[1769992425163,3.45404265,101.86,101.78,3.7324471]
[1769992425363,12.29834265,101.86,101.78,3.7324471]
[1769992425861,3.70162681,101.85,101.76,146.5546]
[1769992426658,3.70162681,101.85,101.76,150.10981149]
[1769992426857,3.70162681,101.85,101.72,11.52252767]
[1769992426858,3.70162681,101.89,101.81,137.637]
[1769992427062,3.70162681,101.87,101.79,3.55521149]
[1769992428359,12.54502681,101.87,101.79,3.55521149]
[1769992428564,3.70162681,101.87,101.78,8.8505]
[1769992429060,3.70162681,101.87,101.7,137.7787]
[1769992429061,141.29052681,101.85,101.75,3.55521149]
[1769992429264,3.70162681,101.84,101.75,3.55521149]
[1769992429564,12.54852681,101.83,101.75,12.40831149]
[1769992430061,3.70162681,101.83,101.76,8.8526]
[1769992430362,3.70162681,101.86,101.78,141.23591149]
[1769992430555,147.57967008,101.89,101.78,141.23591149]
[1769992430556,3.70162681,101.88,101.79,3.55521149]
[1769992430761,137.5752,101.86,101.76,151.28528157]
[1769992431064,141.30322681,101.84,101.76,3.55521149]
[1769992431663,3.70162681,101.83,101.73,141.30371149]
[1769992431859,141.31742681,101.83,101.73,3.55521149]
[1769992432264,8.8476,101.82,101.74,8.8537]
[1769992432463,3.70162681,101.83,101.74,141.29141149]
[1769992432662,3.70162681,101.83,101.75,141.27701149]
[1769992432867,3.70162681,101.86,101.77,8.8517]
[1769992433258,8.8458,101.84,101.77,8.8517]
[1769992433760,3.70162681,101.85,101.78,8.8509]
[1769992434162,141.28992681,101.85,101.77,3.55521149]
[1769992434358,3.70162681,101.84,101.76,8.852]
[1769992434562,3.70162681,101.82,101.74,3.55521149]
[1769992435062,3.70162681,101.81,101.71,141.33151149]
[1769992435364,3.70162681,101.81,101.72,3.55521149]
[1769992435963,8.8494,101.8,101.72,3.55521149]
[1769992436164,3.70162681,101.8,101.72,3.55521149]
[1769992436369,12.55102681,101.8,101.72,12.41131149]
[1769992436569,12.55102681,101.8,101.69,520.31760184]
[1769992436570,3.70162681,101.79,101.69,520.31760184]
[1769992437065,141.37192681,101.79,101.69,382.52630184]
[1769992437271,3.70162681,101.77,101.69,3.55521149]
[1769992437469,3.70162681,101.75,101.66,3.55521149]
[1769992437671,3.70162681,101.75,101.67,137.826]
[1769992437872,3.70162681,101.75,101.66,141.38931149]
[1769992438267,187.20193227,101.78,101.69,137.8037]
[1769992438472,187.20193227,101.78,101.7,137.7895]
[1769992438473,177.16162681,101.78,101.7,137.7895]
[1769992438770,177.16162681,101.78,101.71,8.8569]
[1769992439469,173.46,101.78,101.72,8.8559]
[1769992439676,141.31272681,101.84,101.74,3.55521149]
[1769992439870,137.6298,101.82,101.74,3.55521149]
[1769992440069,8.8486,101.81,101.74,3.55521149]
[1769992440269,3.70162681,101.78,101.69,137.8026]
[1769992440472,151.42503227,101.78,101.68,141.37201149]
[1769992440672,8.852,101.77,101.69,8.8586]
[1769992440869,13.74193227,101.78,101.69,8.8586]
[1769992441169,3.70162681,101.75,101.67,8.8598]
[1769992441371,13.74193227,101.74,101.65,141.40041149]
[1769992441577,3.70162681,101.73,101.63,137.8808]
[1769992441769,22.59833227,101.72,101.63,137.8808]
[1769992441969,13.74193227,101.72,101.64,137.8673]
[1769992442167,3.70162681,101.75,101.66,141.39881149]
[1769992442367,12.55542681,101.75,101.67,8.8603]
[1769992442974,137.7364,101.74,101.65,8.8617]
[1769992443169,141.47852681,101.71,101.63,3.55521149]
[1769992443372,3.70162681,101.71,101.63,3.55521149]
[1769992443573,12.55762681,101.73,101.64,137.8717]
[1769992443769,3.70162681,101.73,101.65,141.40601149]
[1769992444072,3.70162681,101.73,101.66,8.8609]
[1769992444272,3.70162681,101.73,101.65,3.55521149]
[1769992444679,3.70162681,101.73,101.65,141.41301149]
[1769992444974,141.45292681,101.73,101.63,141.44031149]
[1769992445173,12.55712681,101.73,101.64,8.8629]
[1769992445571,3.70162681,101.73,101.65,3.55521149]
[1769992445775,8.8535,101.76,101.68,8.8592]
[1769992446072,141.39862681,101.77,101.67,3.55521149]
[1769992446978,8.8533,101.76,101.68,8.8594]
[1769992447373,3.70162681,101.77,101.69,8.8583]
[1769992448282,3.76846971,101.78,101.69,137.792]
[1769992448674,3.76846971,101.78,101.69,141.3072978]
[1769992448881,141.45096971,101.78,101.69,3.5152978]
[1769992449086,291.18030546,101.79,101.66,141.3574978]
[1769992449087,141.47916971,101.76,101.66,141.3574978]
[1769992449279,29.42,101.81,101.68,3.5152978]
[1769992449477,29.42,101.81,101.64,10.04030546]
[1769992449478,68.46825164,101.83,101.74,8.8538]
[1769992449672,68.46825164,101.81,101.72,137.7616]
[1769992449875,68.46825164,101.81,101.72,146.6187]
[1769992450179,68.46825164,101.81,101.72,8.8556]